bitfinex/quotes_BTCUSD_20241103
["timestamp","ask_amount","ask_price","bid_price","bid_amount"]
[1730643505908,0.01367974,68110.0,68109.0,0.48324936]
[1730643506115,0.03767974,68110.0,68109.0,0.48324936]
[1730643507398,0.024,68110.0,68109.0,0.48324936]
[1730643507613,0.024,68110.0,68109.0,0.44213804]
[1730643510434,0.01,68110.0,68109.0,0.44213804]
[1730643510643,0.170821,68110.0,68109.0,0.14661504]
[1730643510845,0.160821,68110.0,68109.0,0.14661504]
[1730643511059,0.146821,68110.0,68109.0,0.14661504]
[1730643511208,0.162821,68110.0,68109.0,0.14661504]
[1730643511611,1.156821,68110.0,68109.0,0.14661504]
[1730643511829,1.018,68110.0,68109.0,0.32336554]
[1730643511995,1.018,68110.0,68109.0,0.29343804]
[1730643512191,1.0,68110.0,68109.0,0.31643804]
[1730643512402,1.005,68110.0,68109.0,0.31643804]
[1730643512607,1.005,68110.0,68109.0,0.16961504]
[1730643513228,1.005,68110.0,68109.0,0.31643804]
[1730643513428,1.005,68110.0,68109.0,0.16961504]
[1730643513697,1.005,68110.0,68109.0,0.23120824]
[1730643513906,1.0,68110.0,68109.0,0.37803124]
[1730643514072,1.011,68110.0,68109.0,0.31643804]
[1730643514276,1.01,68110.0,68109.0,0.31643804]
[1730643514686,1.014,68110.0,68109.0,0.31643804]
[1730643515023,1.02692,68110.0,68109.0,0.41229845]
[1730643515425,1.01292,68110.0,68109.0,0.41229845]
[1730643515709,1.01392,68110.0,68109.0,0.41229845]
[1730643515941,1.01392,68110.0,68109.0,0.49399845]
[1730643515942,1.02392,68110.0,68109.0,0.49399845]
[1730643516137,1.02392,68110.0,68109.0,0.54759845]
[1730643516989,1.00992,68110.0,68109.0,0.54759845]
[1730643517175,0.99992,68110.0,68109.0,0.54759845]
[1730643517723,1.00392,68110.0,68109.0,0.54759845]
[1730643517929,1.01192,68110.0,68109.0,0.54759845]
[1730643518134,1.00392,68110.0,68109.0,0.54759845]
[1730643518327,0.99992,68110.0,68109.0,0.54759845]
[1730643518552,1.00892,68110.0,68109.0,0.54759845]
[1730643518754,1.01392,68110.0,68109.0,0.54759845]
[1730643519354,1.01392,68110.0,68109.0,0.45173804]
[1730643522020,1.01392,68110.0,68109.0,0.44673804]
[1730643522256,1.015556,68110.0,68109.0,0.45173804]
[1730643524633,1.015556,68110.0,68109.0,0.44673804]
[1730643524852,1.015556,68110.0,68109.0,0.45173804]
[1730643525054,1.015556,68110.0,68109.0,0.44673804]
[1730643525359,1.015556,68110.0,68109.0,0.45173804]
[1730643525953,1.015556,68110.0,68109.0,0.54630366]
[1730643526155,1.015556,68110.0,68109.0,0.45173804]
[1730643526956,1.015556,68110.0,68109.0,0.44673804]
[1730643527366,1.015556,68110.0,68109.0,0.45173804]
[1730643530318,1.015556,68110.0,68109.0,0.46048119]
[1730643530538,1.015556,68110.0,68109.0,0.50445703]
[1730643530774,0.98794185,68110.0,68109.0,0.91533281]
[1730643530992,0.98794185,68110.0,68109.0,0.92857758]
[1730643531196,0.98794185,68110.0,68109.0,0.9372953]
[1730643531671,0.98794185,68110.0,68109.0,0.86337135]
[1730643531877,0.98794185,68110.0,68109.0,0.93729442]
[1730643532226,0.98794185,68110.0,68109.0,0.74008736]
[1730643532637,0.98794185,68110.0,68109.0,0.60444195]
[1730643532842,0.98794185,68110.0,68109.0,0.56048606]
[1730643533158,0.98794185,68110.0,68109.0,0.60444295]
[1730643533510,0.98794185,68110.0,68109.0,0.60813308]
[1730643533639,0.98794185,68110.0,68109.0,0.60812878]
[1730643533823,0.98794185,68110.0,68109.0,0.56417619]
[1730643534026,0.98794185,68110.0,68109.0,0.70058821]
[1730643534449,0.98794185,68110.0,68109.0,0.69184019]
[1730643534651,0.98794185,68110.0,68109.0,0.70058859]
[1730643534932,0.98794185,68110.0,68109.0,0.70058862]
[1730643535127,0.98794185,68110.0,68109.0,0.70933701]
[1730643538263,0.90945443,68110.0,68109.0,0.70933701]
[1730643540822,0.90945443,68110.0,68109.0,0.41432499]
[1730643541244,0.90945443,68110.0,68109.0,0.31218647]
[1730643541450,0.92313607,68110.0,68109.0,0.31218647]
[1730643542191,0.92313607,68110.0,68109.0,0.32643804]
[1730643542393,0.92313607,68110.0,68109.0,0.32143804]
[1730643542627,0.92313607,68110.0,68109.0,0.3251869]
[1730643543054,0.92313607,68110.0,68109.0,0.31643804]
[1730643543645,0.92313607,68110.0,68109.0,0.14661504]
[1730643543900,1.05827543,68110.0,68109.0,0.14661504]
[1730643544229,1.09384942,68110.0,68109.0,0.14661504]
[1730643544454,1.05827543,68110.0,68109.0,0.14661504]
[1730643544652,1.09184887,68110.0,68109.0,0.14661504]
[1730643544785,1.09384887,68110.0,68109.0,0.14661504]
[1730643545199,1.09403859,68110.0,68109.0,0.14661504]
[1730643545619,1.10803859,68110.0,68109.0,0.14661504]
[1730643545817,1.09403859,68110.0,68109.0,0.14661504]
[1730643546238,1.08903859,68110.0,68109.0,0.14661504]
[1730643546465,1.07784887,68110.0,68109.0,0.14661504]
[1730643546684,0.94502787,68110.0,68109.0,0.29343804]
[1730643546868,0.94502787,68110.0,68109.0,0.14661504]
[1730643548022,0.95902787,68110.0,68109.0,0.14661504]
[1730643548904,1.10584887,68110.0,68109.0,0.14661504]
[1730643549116,1.10784887,68110.0,68109.0,0.14661504]
[1730643549339,1.11703853,68110.0,68109.0,0.14661504]
[1730643549548,1.11703859,68110.0,68109.0,0.14661504]
[1730643549995,1.10303859,68110.0,68109.0,0.14661504]
[1730643550428,1.11703859,68110.0,68109.0,0.14661504]
[1730643550645,1.09384887,68110.0,68109.0,0.14661504]
[1730643551090,1.10780503,68110.0,68109.0,0.14661504]
[1730643552840,0.95898403,68110.0,68109.0,0.14661504]
[1730643553682,0.95898403,68110.0,68109.0,0.17604214]
[1730643554546,0.92345443,68110.0,68109.0,0.17604214]
[1730643554760,0.95898861,68110.0,68109.0,0.14661504]
[1730643555001,0.92345443,68110.0,68109.0,0.31643804]
[1730643555218,0.93712143,68110.0,68109.0,0.31643804]
[1730643556620,0.92312143,68110.0,68109.0,0.31643804]
[1730643556764,0.90912143,68110.0,68109.0,0.31643804]
[1730643556965,0.92312143,68110.0,68109.0,0.31643804]
[1730643557166,0.92312143,68110.0,68109.0,0.40108685]
[1730643557992,0.89545443,68110.0,68109.0,0.40108685]
[1730643558193,0.89545443,68110.0,68109.0,0.31643804]
[1730643558194,0.92212089,68110.0,68109.0,0.31643804]
[1730643558442,0.93612089,68110.0,68109.0,0.31643804]
[1730643564939,0.92245443,68110.0,68109.0,0.31643804]
[1730643565135,0.93612527,68110.0,68109.0,0.31643804]
[1730643568466,0.958017,68110.0,68109.0,0.16961504]
[1730643568874,0.958017,68110.0,68109.0,0.31643804]
[1730643570347,0.93612527,68110.0,68109.0,0.40739654]
[1730643570559,0.93612527,68110.0,68109.0,0.31643804]
[1730643570914,0.95802364,68110.0,68109.0,0.31643804]
[1730643572077,0.92245443,68110.0,68109.0,0.31650893]
[1730643572242,0.95804213,68110.0,68109.0,0.31650893]
[1730643573498,0.95804213,68110.0,68109.0,0.40747452]
[1730643574295,0.95804213,68110.0,68109.0,0.41247452]
[1730643574505,0.95804213,68110.0,68109.0,0.49547452]
[1730643574702,0.93614201,68110.0,68109.0,0.49547452]
[1730643575325,0.93614201,68110.0,68109.0,0.54787452]
[1730643575689,0.92245443,68110.0,68109.0,0.54787452]
[1730643576178,0.92245443,68110.0,68109.0,0.69186759]
[1730643576369,0.92245443,68110.0,68109.0,0.65662517]
[1730643576578,0.90845443,68110.0,68109.0,0.65662517]
[1730643576774,0.90845443,68110.0,68109.0,0.80888481]
[1730643576971,0.91545443,68110.0,68109.0,0.87485895]
[1730643577200,0.90845443,68110.0,68109.0,0.80888481]
[1730643577646,0.89545443,68110.0,68109.0,0.65762517]
[1730643578061,0.89845443,68110.0,68109.0,0.65762517]
[1730643578518,0.89545443,68110.0,68109.0,0.72361482]
[1730643578746,0.89545443,68110.0,68109.0,0.87605671]
[1730643578943,0.89645443,68110.0,68109.0,0.87807404]
[1730643579180,0.89645443,68110.0,68109.0,0.8779989]
[1730643579385,0.89645443,68110.0,68109.0,0.87810189]
[1730643579560,0.89645443,68110.0,68109.0,0.8120438]
[1730643579711,0.89645443,68110.0,68109.0,0.88002785]
[1730643580515,0.89645443,68110.0,68109.0,0.72561201]
[1730643580733,0.89545443,68110.0,68109.0,0.72261201]
[1730643580924,0.89545443,68110.0,68109.0,0.72561201]
[1730643581166,0.89645443,68110.0,68109.0,0.65962517]
[1730643581543,0.89545443,68110.0,68109.0,0.65762517]
[1730643581724,0.89545443,68110.0,68109.0,0.72361201]
[1730643582167,0.89545443,68110.0,68109.0,0.72261201]
[1730643582371,0.89945443,68110.0,68109.0,0.72261201]
[1730643582571,0.89945443,68110.0,68109.0,0.71386136]
[1730643582781,0.89945443,68110.0,68109.0,0.72260301]
[1730643583020,0.89945443,68110.0,68109.0,0.65661617]
[1730643583220,0.89945443,68110.0,68109.0,0.72260044]
[1730643583422,0.89945443,68110.0,68109.0,0.87868262]
[1730643583571,0.89945443,68110.0,68109.0,0.66029108]
[1730643583788,0.89945443,68110.0,68109.0,0.30725058]
[1730643583978,0.89945443,68110.0,68109.0,0.29350893]
[1730643584181,0.89945443,68110.0,68109.0,0.29850893]
[1730643584855,0.89945443,68110.0,68109.0,0.14668593]
[1730643585132,0.91513152,68110.0,68109.0,0.14668593]
[1730643585336,1.08383532,68110.0,68109.0,0.14668593]
[1730643585575,0.93701432,68110.0,68109.0,0.14668593]
[1730643585731,1.07983532,68110.0,68109.0,0.14668593]
[1730643585934,1.09083532,68110.0,68109.0,0.14668593]
[1730643586133,1.09083563,68110.0,68109.0,0.14668593]
[1730643586335,0.93101463,68110.0,68109.0,0.14668593]
[1730643586543,0.94501463,68110.0,68109.0,0.14668593]
[1730643586984,1.09383563,68110.0,68109.0,0.14668593]
[1730643587190,1.10302505,68110.0,68109.0,0.14668593]
[1730643587931,1.11002505,68110.0,68109.0,0.14668593]
[1730643588571,1.10302505,68110.0,68109.0,0.14668593]
[1730643588941,1.16072505,68110.0,68109.0,0.14668593]
[1730643589372,1.11597543,68110.0,68109.0,0.14668593]
[1730643589575,1.16072011,68110.0,68109.0,0.14668593]
[1730643592192,1.18351144,68110.0,68109.0,0.14668593]
[1730643593362,1.16072011,68110.0,68109.0,0.14668593]
[1730643596185,1.11597543,68110.0,68109.0,0.14668593]
[1730643596458,1.16067411,68110.0,68109.0,0.14668593]
[1730643599784,1.16065918,68110.0,68109.0,0.14668593]
[1730643600730,1.16065918,68110.0,68109.0,0.00088889]
[1730643602947,1.13665918,68110.0,68109.0,0.00088889]
[1730643603391,1.15065918,68110.0,68109.0,0.00088889]
[1730643603996,1.16465918,68110.0,68109.0,0.00088889]
[1730643604426,1.17865918,68110.0,68109.0,0.00088889]
[1730643604829,1.16465918,68110.0,68109.0,0.00088889]
[1730643605179,1.17865918,68110.0,68109.0,0.00088889]
[1730643605605,1.28865918,68110.0,68109.0,0.00088889]
[1730643606567,1.64991539,68110.0,68109.0,0.00088889]
[1730643607025,1.64791539,68110.0,68109.0,0.00088889]
[1730643607935,1.64991539,68110.0,68109.0,0.00088889]
[1730643608164,1.64991539,68110.0,68108.0,8.9e-07]
[1730643608165,0.264,68109.0,68108.0,8.9e-07]
[1730643608352,0.264,68109.0,68103.0,0.00166]
[1730643608353,0.635934,68104.0,68103.0,0.00166]
[1730643608575,2.62513914,68104.0,68103.0,0.00166]
[1730643608752,2.72077864,68104.0,68103.0,0.00166]
[1730643608983,2.76500934,68104.0,68103.0,0.00166]
[1730643609188,2.87212719,68104.0,68103.0,0.00166]
[1730643609407,2.90880638,68104.0,68103.0,0.00166]
[1730643609609,2.86654128,68104.0,68103.0,0.00166]
[1730643610126,2.88054128,68104.0,68103.0,0.00166]
[1730643610326,2.95376058,68104.0,68103.0,0.00166]
[1730643610816,2.96976058,68104.0,68103.0,0.00166]
[1730643611500,2.78482968,68104.0,68103.0,0.00166]
[1730643611960,2.80082968,68104.0,68103.0,0.00166]
[1730643612230,4.34502908,68104.0,68103.0,0.00166]
[1730643612473,4.33095167,68104.0,68103.0,0.00166]
[1730643612716,4.33095167,68104.0,68098.0,0.00083]
[1730643612717,0.510845,68099.0,68098.0,0.00083]
[1730643612969,0.8315759,68099.0,68098.0,0.00083]
[1730643613692,0.87514323,68099.0,68098.0,0.00083]
[1730643613920,0.8315759,68099.0,68098.0,0.00083]
[1730643614130,1.21196511,68099.0,68098.0,0.00083]
[1730643614389,1.27729404,68099.0,68098.0,0.00083]
[1730643614594,1.27729404,68099.0,68097.0,6.228e-05]
[1730643614595,0.014,68098.0,68097.0,2.419e-05]
[1730643614827,2.11046832,68098.0,68097.0,2.419e-05]
[1730643615050,2.0451369,68098.0,68097.0,2.419e-05]
[1730643615284,1.8300669,68098.0,68097.0,2.419e-05]
[1730643615536,1.94527376,68098.0,68097.0,2.419e-05]
[1730643615783,0.259,68086.0,68084.0,0.000818]
[1730643616032,4.20971647,68086.0,68084.0,0.000818]
[1730643616269,4.50319515,68086.0,68084.0,0.000818]
[1730643616508,4.26426032,68086.0,68084.0,0.000818]
[1730643616749,4.22333894,68086.0,68084.0,0.000818]
[1730643616988,4.50319515,68086.0,68084.0,0.000818]
[1730643617205,4.26426032,68086.0,68084.0,0.000818]
[1730643617473,4.40356894,68086.0,68084.0,0.000818]
[1730643617703,4.48875822,68086.0,68084.0,0.000818]
[1730643617919,4.76861443,68086.0,68084.0,0.000818]
[1730643618139,4.99582725,68086.0,68084.0,0.000818]
[1730643618359,5.00982725,68086.0,68084.0,0.000818]
[1730643618570,4.85235325,68086.0,68084.0,0.000818]
[1730643618815,0.384975,68085.0,68084.0,0.000818]
[1730643619016,1.29186524,68085.0,68084.0,0.000818]
[1730643619145,1.37740194,68085.0,68084.0,0.000818]
[1730643619758,1.32800194,68085.0,68084.0,0.000818]
[1730643619959,1.32800194,68085.0,68069.0,0.22053797]
[1730643619960,0.3308,68067.0,68066.0,0.22053797]
[1730643620159,0.37541532,68067.0,68066.0,0.22053797]
[1730643620357,0.148927,68061.0,68060.0,4.506e-05]
[1730643620587,0.19354232,68061.0,68060.0,0.1458421]
[1730643621165,0.146955,68048.0,68046.0,0.06383717]
[1730643621364,0.002,68052.0,68047.0,0.38933501]
[1730643621548,0.03531497,68051.0,68047.0,0.16879704]
[1730643621747,0.03531497,68050.0,68047.0,0.16879704]
[1730643621949,0.03531497,68049.0,68047.0,0.16879704]
[1730643622155,0.03531497,68048.0,68047.0,0.16879704]
[1730643622362,0.03531497,68048.0,68047.0,0.14579704]
[1730643622363,0.18326997,68048.0,68047.0,0.14579704]
[1730643622697,0.18526997,68048.0,68047.0,0.14579704]
[1730643622912,0.18426997,68048.0,68047.0,0.14579704]
[1730643623227,0.03531497,68048.0,68047.0,0.14579704]
[1730643623434,0.18226997,68048.0,68047.0,0.14579704]
[1730643623872,0.03531497,68048.0,68047.0,0.14579704]
[1730643624435,0.03531497,68048.0,68047.0,0.16879704]
[1730643624641,0.03531497,68048.0,68047.0,0.31575404]
[1730643625042,0.03531497,68048.0,68047.0,0.14579704]
[1730643625248,0.18226997,68048.0,68047.0,0.14579704]
[1730643625448,0.18426997,68048.0,68047.0,0.14579704]
[1730643625646,0.20426997,68048.0,68047.0,0.14579704]
[1730643625912,0.05531497,68048.0,68047.0,0.14579704]
[1730643626427,0.055273,68048.0,68047.0,0.14579704]
[1730643626563,0.05527306,68048.0,68047.0,0.14579704]
[1730643627184,0.06447081,68048.0,68047.0,0.14579704]
[1730643627789,0.0644744,68048.0,68047.0,0.14579704]
[1730643628365,0.0644744,68048.0,68047.0,0.14661504]
[1730643631530,0.0644744,68048.0,68047.0,0.29357204]
[1730643631727,0.0644744,68048.0,68047.0,0.31657204]
[1730643632565,0.0644744,68048.0,68047.0,0.16961504]
[1730643632899,0.0444744,68048.0,68047.0,0.16961504]
[1730643633102,0.0444744,68048.0,68047.0,0.31657204]
[1730643633309,0.03970871,68048.0,68047.0,0.31657204]
[1730643633536,0.02670871,68048.0,68047.0,0.44217204]
[1730643633994,0.04070871,68048.0,68047.0,0.44217204]
[1730643634193,0.04070871,68048.0,68047.0,0.45217204]
[1730643634539,0.019,68048.0,68047.0,0.45217204]
[1730643634741,0.019,68048.0,68047.0,0.66300352]
[1730643634947,0.019,68048.0,68047.0,0.55217204]
[1730643635159,0.22053797,68057.0,68056.0,0.146937]
[1730643635359,0.22053797,68057.0,68056.0,0.44133404]
[1730643635763,0.002,68067.0,68058.0,0.293865]
[1730643635981,0.27985621,68068.0,68061.0,0.293854]
[1730643636195,0.27985621,68068.0,68059.0,0.16879704]
[1730643636196,0.27985621,68068.0,68067.0,0.146914]
[1730643636440,0.27985621,68068.0,68067.0,0.44131104]
[1730643638244,0.27985621,68068.0,68067.0,0.24689704]
[1730643638474,0.29385621,68068.0,68067.0,0.31571104]
[1730643638711,0.27985621,68068.0,68067.0,0.16879704]
[1730643639194,0.29285621,68068.0,68067.0,0.16879704]
[1730643639399,0.43176721,68068.0,68067.0,0.14579704]
[1730643639643,0.42876721,68068.0,68067.0,0.14579704]
[1730643639816,0.34211066,68068.0,68067.0,0.14579704]
[1730643640048,0.34511066,68068.0,68067.0,0.29271104]
[1730643640406,0.34011066,68068.0,68067.0,0.29271104]
[1730643640615,0.34011066,68068.0,68067.0,0.16879704]
[1730643640815,0.34011066,68068.0,68067.0,0.31571104]
[1730643641032,0.33091558,68068.0,68067.0,0.31571104]
[1730643641258,0.34011061,68068.0,68067.0,0.31571104]
[1730643641503,0.37282266,68068.0,68067.0,0.31571104]
[1730643641682,0.35882266,68068.0,68067.0,0.31571104]
[1730643641902,0.34982183,68068.0,68067.0,0.31571104]
[1730643642122,0.36382183,68068.0,68067.0,0.31571104]
[1730643642356,0.34011061,68068.0,68067.0,0.26522217]
[1730643642812,0.34211061,68068.0,68067.0,0.11830817]
[1730643643014,0.33311061,68068.0,68067.0,0.11830817]
[1730643643196,0.48002161,68068.0,68067.0,0.09530817]
[1730643643398,0.48902161,68068.0,68067.0,0.09530817]
[1730643643816,0.49702161,68068.0,68067.0,0.09530817]
[1730643644251,0.49704373,68068.0,68067.0,0.09530817]
[1730643644676,0.48304373,68068.0,68067.0,0.09530817]
[1730643644877,0.002,68057.0,68051.0,0.0823]
[1730643645082,0.002,68057.0,68056.0,0.023]
[1730643645276,0.04663849,68057.0,68056.0,0.16879704]
[1730643645501,0.19357349,68057.0,68056.0,0.14579704]
[1730643645711,0.27397288,68057.0,68056.0,0.14579704]
[1730643645913,0.19357263,68057.0,68056.0,0.14579704]
[1730643646122,0.22929101,68057.0,68056.0,0.14579704]
[1730643646324,0.19357263,68057.0,68056.0,0.14579704]
[1730643646613,0.22529316,68057.0,68056.0,0.14579704]
[1730643646819,0.20257263,68057.0,68056.0,0.14579704]
[1730643647425,0.05563763,68057.0,68056.0,0.14579704]
[1730643647654,0.05363763,68057.0,68056.0,0.14579704]
[1730643647936,0.04463763,68057.0,68056.0,0.14579704]
[1730643648138,0.05763763,68057.0,68056.0,0.14579704]
[1730643648348,0.05763763,68057.0,68056.0,0.29273404]
[1730643648498,0.04863763,68057.0,68056.0,0.29273404]
[1730643648848,0.06263763,68057.0,68056.0,0.16879704]
[1730643649001,0.05863763,68057.0,68056.0,0.16879704]
[1730643649431,0.06563763,68057.0,68056.0,0.16879704]
[1730643650064,0.06563763,68057.0,68056.0,0.31573404]
[1730643650265,0.06563763,68057.0,68056.0,0.39303404]
[1730643650438,0.06763763,68057.0,68056.0,0.39303404]
[1730643650642,0.06563763,68057.0,68056.0,0.39303404]
[1730643651268,0.06564536,68057.0,68056.0,0.39303404]
[1730643652183,0.06564536,68057.0,68056.0,0.39385304]
[1730643654346,0.06564536,68057.0,68056.0,0.44265304]
[1730643654784,0.021,68057.0,68056.0,0.44765304]
[1730643654985,0.065653,68057.0,68056.0,0.44765304]
[1730643655185,0.05645688,68057.0,68056.0,0.45265304]
[1730643655361,0.03463726,68057.0,68056.0,0.45265304]
[1730643655585,0.03463726,68057.0,68056.0,0.55669554]
[1730643656079,0.01363726,68057.0,68056.0,0.65669554]
[1730643656287,0.36203218,68067.0,68066.0,0.005]
[1730643656496,0.0370947,68067.0,68066.0,0.45181304]
[1730643657445,0.001638,68067.0,68066.0,0.58514714]
[1730643657624,0.001638,68067.0,68066.0,0.68514714]
[1730643658863,0.001638,68067.0,68066.0,0.6887471]
[1730643659069,0.001638,68067.0,68066.0,0.555413]
[1730643659499,0.001638,68067.0,68066.0,0.55581304]
[1730643659827,0.004638,68067.0,68066.0,0.55581304]
[1730643661182,0.004638,68067.0,68066.0,0.55081304]
[1730643661377,0.004638,68067.0,68066.0,0.55181304]
[1730643661629,0.001638,68067.0,68066.0,0.55181304]
[1730643661922,0.007638,68067.0,68066.0,0.69814714]
[1730643662322,0.007638,68067.0,68066.0,0.69514714]
[1730643662532,0.007638,68067.0,68066.0,0.55181304]
[1730643662677,0.007638,68067.0,68066.0,0.55381304]
[1730643667035,0.007638,68067.0,68066.0,0.56252794]
[1730643667802,0.007638,68067.0,68066.0,0.56252638]
[1730643668215,0.007638,68067.0,68066.0,0.69963878]
[1730643668414,0.001638,68068.0,68067.0,0.279914]
[1730643668698,0.001638,68068.0,68067.0,0.51222345]
[1730643669624,0.001638,68068.0,68067.0,0.51322345]
[1730643669844,0.002638,68068.0,68067.0,0.51622345]
[1730643670075,0.002638,68068.0,68067.0,0.66204919]
[1730643672902,0.001638,68068.0,68067.0,0.53641252]
[1730643673156,0.002638,68068.0,68067.0,0.54341252]
[1730643673380,0.002638,68068.0,68067.0,0.30971104]
[1730643674137,0.002638,68068.0,68067.0,0.30471104]
[1730643674638,0.001638,68068.0,68067.0,0.29271104]
[1730643674853,0.001638,68068.0,68067.0,0.29771104]
[1730643674854,0.004638,68068.0,68067.0,0.29771104]
[1730643675085,0.002638,68068.0,68067.0,0.29771104]
[1730643675324,0.002638,68068.0,68067.0,0.32071104]
[1730643675526,0.002638,68068.0,68067.0,0.17479704]
[1730643675527,0.015638,68068.0,68067.0,0.17479704]
[1730643675723,0.015638,68068.0,68067.0,0.29871104]
[1730643675932,0.02823566,68068.0,68067.0,0.29371104]
[1730643676133,0.03023566,68068.0,68067.0,0.14679704]
[1730643676347,0.18314666,68068.0,68067.0,0.14779704]
[1730643677204,0.45491312,68068.0,68067.0,0.14779704]
[1730643677406,0.45491312,68068.0,68067.0,0.002]
[1730643677834,0.419549,68068.0,68067.0,0.002]
[1730643678045,0.45492738,68068.0,68067.0,0.002]
[1730643678873,0.46412334,68068.0,68067.0,0.002]
[1730643679079,0.58942334,68068.0,68067.0,0.002]
[1730643680888,0.57642334,68068.0,68067.0,0.001]
[1730643681084,0.59042334,68068.0,68067.0,0.001]
[1730643681331,0.148914,68067.0,68066.0,0.000819]
[1730643681564,0.42878834,68067.0,68066.0,0.000819]
[1730643681780,0.47290129,68067.0,68066.0,0.000819]
[1730643682206,0.403935,68057.0,68056.0,0.000819]
[1730643682417,0.67880934,68057.0,68056.0,0.000819]
[1730643682642,0.68080934,68057.0,68056.0,0.000819]
[1730643683401,0.68080934,68057.0,68047.0,0.000818]
[1730643683402,0.529255,68048.0,68047.0,0.000818]
[1730643683606,0.57382934,68048.0,68047.0,0.000818]
[1730643683975,0.59647092,68048.0,68047.0,0.000818]
[1730643684165,0.59641213,68048.0,68047.0,0.000818]
[1730643684551,0.524255,68048.0,68047.0,0.000818]
[1730643684837,0.52774821,68048.0,68047.0,0.000818]
[1730643685516,0.53274821,68048.0,68047.0,0.000818]
[1730643685739,0.54674821,68048.0,68047.0,0.000818]
[1730643685971,0.53274821,68048.0,68047.0,0.000818]
[1730643686446,0.54174821,68048.0,68047.0,0.000818]
[1730643686688,0.54674821,68048.0,68047.0,0.000818]
[1730643686912,0.53274821,68048.0,68047.0,0.14661504]
[1730643687630,0.54674821,68048.0,68047.0,0.000818]
[1730643687632,0.53269348,68048.0,68047.0,0.000818]
[1730643687892,0.58349348,68048.0,68047.0,0.000818]
[1730643688132,0.62008225,68048.0,68047.0,0.000818]
[1730643688357,0.69269306,68048.0,68047.0,0.000818]
[1730643688777,0.67869306,68048.0,68047.0,0.000818]
[1730643689019,0.69269306,68048.0,68047.0,0.000818]
[1730643689470,0.67869306,68048.0,68047.0,0.000818]
[1730643690169,0.68069306,68048.0,68047.0,0.000818]
[1730643690866,0.70869306,68048.0,68047.0,0.000818]
[1730643691118,0.69469306,68048.0,68047.0,0.000818]
[1730643691380,0.70869306,68048.0,68047.0,0.000818]
[1730643691635,0.8404901,68048.0,68047.0,0.000818]
[1730643691882,0.8544901,68048.0,68047.0,0.000818]
[1730643692113,2.0881871,68048.0,68047.0,0.000818]
[1730643692316,0.8544901,68048.0,68047.0,0.000818]
[1730643692523,0.70669306,68048.0,68047.0,0.000818]
[1730643694030,0.70660072,68048.0,68047.0,0.000818]
[1730643694466,0.69260072,68048.0,68047.0,0.000818]
[1730643694700,0.67860072,68048.0,68047.0,0.000818]
[1730643694926,0.70660072,68048.0,68047.0,0.000818]
[1730643695424,0.89051055,68048.0,68047.0,0.000818]
[1730643695643,0.70660072,68048.0,68047.0,0.000818]
[1730643695849,0.69260072,68048.0,68047.0,0.000818]
[1730643696684,0.73071351,68048.0,68047.0,0.000818]
[1730643697093,0.67860072,68048.0,68047.0,0.000818]
[1730643697235,0.68697768,68048.0,68047.0,0.000818]
[1730643697440,0.7086122,68048.0,68047.0,0.000818]
[1730643697651,0.6946122,68048.0,68047.0,0.000818]
[1730643697894,0.92439155,68048.0,68047.0,0.000818]
[1730643698276,0.634157,68047.0,68046.0,0.06439277]
[1730643698477,1.07543103,68047.0,68046.0,0.06439277]
[1730643698709,1.05721803,68047.0,68046.0,0.06439277]
[1730643699086,0.51097,68041.0,68040.0,0.000831]
[1730643699315,0.6785272,68041.0,68040.0,0.000831]
[1730643699889,0.86243703,68041.0,68040.0,0.000831]
[1730643700288,0.82232424,68041.0,68040.0,0.000831]
[1730643700489,0.82432424,68041.0,68040.0,0.000831]
[1730643700665,0.8243495,68041.0,68040.0,0.000831]
[1730643700867,0.84599892,68041.0,68040.0,0.000831]
[1730643701131,0.72293509,68041.0,68040.0,0.000831]
[1730643701395,0.72293511,68041.0,68040.0,0.000831]
[1730643701587,0.69255246,68041.0,68040.0,0.000831]
[1730643702000,0.73695917,68041.0,68040.0,0.000831]
[1730643702201,1.00317,68041.0,68040.0,0.000831]
[1730643702406,1.40960385,68041.0,68040.0,0.000831]
[1730643702605,1.41160385,68041.0,68040.0,0.000831]
[1730643703021,1.55740089,68041.0,68040.0,0.000831]
[1730643704984,1.60327041,68041.0,68040.0,0.000831]
[1730643705925,1.55740089,68041.0,68040.0,0.000831]
[1730643706345,1.61250385,68041.0,68040.0,0.000831]
[1730643706584,1.17640385,68041.0,68040.0,0.000831]
[1730643706797,0.47140385,68041.0,68040.0,0.000831]
[1730643707229,0.44840385,68041.0,68040.0,0.000831]
[1730643707434,0.46240385,68041.0,68040.0,0.000831]
[1730643707636,0.47640385,68041.0,68040.0,0.000831]
[1730643707839,0.56240385,68041.0,68040.0,0.000831]
[1730643708039,0.54840385,68041.0,68040.0,0.000831]
[1730643708280,0.56240385,68041.0,68040.0,0.000831]
[1730643708471,0.57640385,68041.0,68040.0,0.000831]
[1730643708917,0.57140385,68041.0,68040.0,0.000831]
[1730643709562,0.47140385,68041.0,68040.0,0.000831]
[1730643711810,0.46924945,68041.0,68040.0,0.000831]
[1730643712014,0.47160904,68041.0,68040.0,0.000831]
[1730643713544,0.148989,68032.0,68031.0,0.07027101]
[1730643713695,0.19362804,68032.0,68031.0,0.21606805]
[1730643714108,0.19362804,68032.0,68031.0,0.16879704]
[1730643714742,0.20762804,68032.0,68031.0,0.16879704]
[1730643714927,0.22162804,68032.0,68031.0,0.16879704]
[1730643715123,0.4421846,68032.0,68031.0,0.14579704]
[1730643715330,0.4421846,68032.0,68029.0,0.000831]
[1730643715331,0.146993,68030.0,68029.0,0.000831]
[1730643715542,0.19165693,68030.0,68029.0,0.000831]
[1730643715755,0.19365693,68030.0,68029.0,0.000831]
[1730643716824,0.21965693,68030.0,68029.0,0.000831]
[1730643717579,0.21965693,68030.0,68029.0,0.14662804]
[1730643718309,0.20601737,68030.0,68029.0,0.14662804]
[1730643718518,0.21967709,68030.0,68029.0,0.14662804]
[1730643719548,0.21967709,68030.0,68029.0,0.000831]
[1730643720887,0.22467709,68030.0,68029.0,0.000831]
[1730643721189,0.179993,68030.0,68029.0,0.000831]
[1730643721397,0.22467241,68030.0,68029.0,0.000831]
[1730643721604,0.32967241,68030.0,68029.0,0.000831]
[1730643722382,0.32047035,68030.0,68029.0,0.000831]
[1730643722940,0.31547035,68030.0,68029.0,0.000831]
[1730643723080,0.32047035,68030.0,68029.0,0.000831]
[1730643723491,0.31547035,68030.0,68029.0,0.000831]
[1730643723773,0.32047035,68030.0,68029.0,0.000831]
[1730643727551,0.28427712,68030.0,68029.0,0.000831]
[1730643727745,0.29991842,68030.0,68029.0,0.000831]
[1730643727955,0.3217445,68030.0,68029.0,0.000831]
[1730643728164,0.70694338,68030.0,68029.0,0.000831]
[1730643728355,0.362,68017.0,68016.0,0.000831]